[Event "Titled Tuesday Blitz August 15 Early 2023"]
[White "Lazavik, Denis"]
[Black "Golubev, Mikhail"]
[WhiteFideId "13515110"]
[BlackFideId "14100983"]
[WhiteElo "3044"]
[BlackElo "2607"]
[Result "1-0"]
[Round "4"]
[TimeControl "180+1"]
[Date "2023.08.15"]
[WhiteClock "0:02:28"]
[BlackClock "0:00:05"]
[Board "34"]

1. d4 {[%clk 0:03:00]}  Nf6 {[%clk 0:03:00]} 2. c4 {[%clk 0:03:01]}  g6 {[%clk 0:03:00]} 3. g3 {[%clk 0:03:02]}  Bg7 {[%clk 0:03:00]} 4. Bg2 {[%clk 0:03:02]}  O-O {[%clk 0:03:01]} 5. Nc3 {[%clk 0:03:03]}  d6 {[%clk 0:03:01]} 6. Nf3 {[%clk 0:03:04]}  Nbd7 {[%clk 0:03:01]} 7. O-O {[%clk 0:03:04]}  e5 {[%clk 0:03:02]} 8. e4 {[%clk 0:03:05]}  Re8 {[%clk 0:03:01]} 9. h3 {[%clk 0:03:05]}  exd4 {[%clk 0:02:59]} 10. Nxd4 {[%clk 0:03:04]}  Nc5 {[%clk 0:02:59]} 11. Re1 {[%clk 0:03:04]}  h6 {[%clk 0:02:59]} 12. f3 {[%clk 0:03:03]}  c6 {[%clk 0:02:34]} 13. Be3 {[%clk 0:03:02]}  d5 {[%clk 0:02:24]} 14. Nxc6 {[%clk 0:03:01]}  bxc6 {[%clk 0:02:23]} 15. Bxc5 {[%clk 0:03:01]}  Nh5 {[%clk 0:02:09]} 16. exd5 {[%clk 0:02:41]}  Nxg3 {[%clk 0:01:42]} 17. dxc6 {[%clk 0:02:40]}  Rxe1+ {[%clk 0:01:18]} 18. Qxe1 {[%clk 0:02:39]}  Qh4 {[%clk 0:00:10]} 19. Bf2 {[%clk 0:02:32]}  Bxh3 {[%clk 0:00:09]} 20. Bxg3 {[%clk 0:02:29]}  Bd4+ {[%clk 0:00:05]} 21. Kh2 {[%clk 0:02:28]} 1-0


[Site "https://www.chess.com"]

[Event "Titled Tuesday Blitz August 15 Early 2023"]
[White "Milosevic, Milos"]
[Black "Moskalenko, Alexander"]
[WhiteFideId "964875"]
[BlackFideId "4155351"]
[WhiteElo "2586"]
[BlackElo "2900"]
[Result "1/2-1/2"]
[Round "4"]
[TimeControl "180+1"]
[Date "2023.08.15"]
[WhiteClock "0:00:06"]
[BlackClock "0:00:09"]
[Board "42"]

1. e4 {[%clk 0:03:00]}  e5 {[%clk 0:02:51]} 2. Nf3 {[%clk 0:02:54]}  Nc6 {[%clk 0:02:48]} 3. Bc4 {[%clk 0:02:54]}  Nf6 {[%clk 0:02:47]} 4. d4 {[%clk 0:02:54]}  exd4 {[%clk 0:02:45]} 5. e5 {[%clk 0:02:54]}  d5 {[%clk 0:02:42]} 6. Bb5 {[%clk 0:02:54]}  Nd7 {[%clk 0:02:42]} 7. Nxd4 {[%clk 0:02:51]}  Nxd4 {[%clk 0:02:39]} 8. Qxd4 {[%clk 0:02:49]}  c6 {[%clk 0:02:38]} 9. Be2 {[%clk 0:02:43]}  Bc5 {[%clk 0:02:34]} 10. Qg4 {[%clk 0:02:43]}  g6 {[%clk 0:02:21]} 11. Qg3 {[%clk 0:02:25]}  h5 {[%clk 0:02:06]} 12. e6 {[%clk 0:01:18]}  Nf6 {[%clk 0:02:06]} 13. exf7+ {[%clk 0:01:19]}  Kxf7 {[%clk 0:02:07]} 14. O-O {[%clk 0:01:19]}  h4 {[%clk 0:02:02]} 15. Qc3 {[%clk 0:01:15]}  Ne4 {[%clk 0:01:54]} 16. Qf3+ {[%clk 0:01:14]}  Kg7 {[%clk 0:01:52]} 17. Nc3 {[%clk 0:01:01]}  Rf8 {[%clk 0:01:50]} 18. Bf4 {[%clk 0:01:02]}  Qf6 {[%clk 0:01:02]} 19. Nxe4 {[%clk 0:00:58]}  dxe4 {[%clk 0:01:03]} 20. Qb3 {[%clk 0:00:53]}  Qxf4 {[%clk 0:00:38]} 21. Qc3+ {[%clk 0:00:52]}  Rf6 {[%clk 0:00:39]} 22. Qxc5 {[%clk 0:00:52]}  Bg4 {[%clk 0:00:39]} 23. Bxg4 {[%clk 0:00:40]}  Qxg4 {[%clk 0:00:40]} 24. Qe7+ {[%clk 0:00:41]}  Rf7 {[%clk 0:00:40]} 25. Qe5+ {[%clk 0:00:41]}  Kh6 {[%clk 0:00:35]} 26. Rae1 {[%clk 0:00:36]}  h3 {[%clk 0:00:29]} 27. Qxe4 {[%clk 0:00:34]}  Qxe4 {[%clk 0:00:25]} 28. Rxe4 {[%clk 0:00:35]}  hxg2 {[%clk 0:00:26]} 29. Kxg2 {[%clk 0:00:35]}  Rd8 {[%clk 0:00:27]} 30. f3 {[%clk 0:00:30]}  Rd2+ {[%clk 0:00:25]} 31. Rf2 {[%clk 0:00:31]}  Rd1 {[%clk 0:00:25]} 32. Rfe2 {[%clk 0:00:29]}  a5 {[%clk 0:00:24]} 33. a4 {[%clk 0:00:28]}  Rf5 {[%clk 0:00:21]} 34. h4 {[%clk 0:00:22]}  b5 {[%clk 0:00:20]} 35. b3 {[%clk 0:00:08]}  Rfd5 {[%clk 0:00:17]} 36. Re8 {[%clk 0:00:06]}  bxa4 {[%clk 0:00:15]} 37. bxa4 {[%clk 0:00:06]}  R5d4 {[%clk 0:00:15]} 38. R8e4 {[%clk 0:00:06]}  R1d2 {[%clk 0:00:12]} 39. Kg3 {[%clk 0:00:06]}  Rxe4 {[%clk 0:00:10]} 40. Rxd2 {[%clk 0:00:06]}  Rxa4 {[%clk 0:00:10]} 41. Rd6 {[%clk 0:00:07]}  Rc4 {[%clk 0:00:11]} 42. Rd8 {[%clk 0:00:07]}  Rxc2 {[%clk 0:00:11]} 43. Ra8 {[%clk 0:00:06]}  Rc5 {[%clk 0:00:11]} 44. Kg4 {[%clk 0:00:07]}  Rc4+ {[%clk 0:00:11]} 45. f4 {[%clk 0:00:07]}  a4 {[%clk 0:00:12]} 46. Ra6 {[%clk 0:00:07]}  Kg7 {[%clk 0:00:11]} 47. Kg5 {[%clk 0:00:08]}  Kf7 {[%clk 0:00:08]} 48. Ra7+ {[%clk 0:00:07]}  Ke6 {[%clk 0:00:09]} 49. Kxg6 {[%clk 0:00:07]}  Rxf4 {[%clk 0:00:09]} 50. h5 {[%clk 0:00:08]}  Rg4+ {[%clk 0:00:10]} 51. Kh7 {[%clk 0:00:08]}  Kd5 {[%clk 0:00:07]} 52. h6 {[%clk 0:00:09]}  Kc5 {[%clk 0:00:08]} 53. Kh8 {[%clk 0:00:09]}  Kb4 {[%clk 0:00:08]} 54. h7 {[%clk 0:00:09]}  c5 {[%clk 0:00:08]} 55. Rg7 {[%clk 0:00:09]}  Rh4 {[%clk 0:00:09]} 56. Kg8 {[%clk 0:00:09]}  a3 {[%clk 0:00:09]} 57. Rb7+ {[%clk 0:00:07]}  Kc3 {[%clk 0:00:09]} 58. Ra7 {[%clk 0:00:05]}  Kb2 {[%clk 0:00:08]} 59. Rc7 {[%clk 0:00:04]}  c4 {[%clk 0:00:07]} 60. Rxc4 {[%clk 0:00:04]}  Rxc4 {[%clk 0:00:08]} 61. h8=Q+ {[%clk 0:00:03]}  Rc3 {[%clk 0:00:09]} 62. Qd4 {[%clk 0:00:03]}  a2 {[%clk 0:00:09]} 63. Qb4+ {[%clk 0:00:04]}  Rb3 {[%clk 0:00:09]} 64. Qd2+ {[%clk 0:00:04]}  Ka3 {[%clk 0:00:09]} 65. Qa5+ {[%clk 0:00:04]}  Kb2 {[%clk 0:00:09]} 66. Qd2+ {[%clk 0:00:05]}  Kb1 {[%clk 0:00:09]} 67. Qd1+ {[%clk 0:00:05]}  Kb2 {[%clk 0:00:09]} 68. Qd2+ {[%clk 0:00:06]} 1/2-1/2


[Site "https://www.chess.com"]

[Event "Titled Tuesday Blitz August 15 Early 2023"]
[White "Kovalev, Vladislav"]
[Black "Musovic, Armin"]
[WhiteFideId "13504398"]
[BlackFideId "939935"]
[WhiteElo "2870"]
[BlackElo "2585"]
[Result "1-0"]
[Round "4"]
[TimeControl "180+1"]
[Date "2023.08.15"]
[WhiteClock "0:00:18"]
[BlackClock "0:00:03"]
[Board "44"]

1. e4 {[%clk 0:02:58]}  c6 {[%clk 0:02:52]} 2. Nf3 {[%clk 0:02:56]}  d5 {[%clk 0:02:53]} 3. d3 {[%clk 0:02:57]}  dxe4 {[%clk 0:02:52]} 4. dxe4 {[%clk 0:02:58]}  Qxd1+ {[%clk 0:02:53]} 5. Kxd1 {[%clk 0:02:59]}  Bg4 {[%clk 0:02:53]} 6. Be2 {[%clk 0:02:58]}  g6 {[%clk 0:02:53]} 7. Ne1 {[%clk 0:02:58]}  h5 {[%clk 0:02:51]} 8. Be3 {[%clk 0:02:52]}  Bh6 {[%clk 0:02:48]} 9. Bxh6 {[%clk 0:02:52]}  Rxh6 {[%clk 0:02:47]} 10. Nd2 {[%clk 0:02:53]}  Bxe2+ {[%clk 0:02:43]} 11. Kxe2 {[%clk 0:02:53]}  Nd7 {[%clk 0:02:43]} 12. Nd3 {[%clk 0:02:52]}  g5 {[%clk 0:02:42]} 13. a4 {[%clk 0:02:44]}  e6 {[%clk 0:02:38]} 14. Nc4 {[%clk 0:02:44]}  e5 {[%clk 0:02:26]} 15. Rhd1 {[%clk 0:02:40]}  Re6 {[%clk 0:02:25]} 16. f3 {[%clk 0:02:28]}  O-O-O {[%clk 0:02:07]} 17. Rd2 {[%clk 0:02:23]}  f6 {[%clk 0:01:59]} 18. Rad1 {[%clk 0:02:23]}  Nb6 {[%clk 0:01:59]} 19. Ne3 {[%clk 0:01:56]}  Ne7 {[%clk 0:01:54]} 20. a5 {[%clk 0:01:56]}  Na4 {[%clk 0:01:41]} 21. Ra1 {[%clk 0:01:55]}  b5 {[%clk 0:01:31]} 22. axb6 {[%clk 0:01:55]}  Nxb6 {[%clk 0:01:32]} 23. Rxa7 {[%clk 0:01:54]}  Ng6 {[%clk 0:01:31]} 24. g3 {[%clk 0:01:51]}  Re7 {[%clk 0:01:25]} 25. Ra6 {[%clk 0:01:50]}  Rb7 {[%clk 0:01:20]} 26. b3 {[%clk 0:01:41]}  Nf8 {[%clk 0:01:09]} 27. Nc5 {[%clk 0:01:36]}  Rxd2+ {[%clk 0:01:10]} 28. Kxd2 {[%clk 0:01:37]}  Rb8 {[%clk 0:01:10]} 29. Nf5 {[%clk 0:01:37]}  Nfd7 {[%clk 0:01:04]} 30. Nxd7 {[%clk 0:01:19]}  Kxd7 {[%clk 0:01:05]} 31. Ra7+ {[%clk 0:01:20]}  Kd8 {[%clk 0:01:02]} 32. Rh7 {[%clk 0:01:18]}  Nd7 {[%clk 0:00:57]} 33. Rxh5 {[%clk 0:01:18]}  Kc7 {[%clk 0:00:56]} 34. Rh7 {[%clk 0:01:18]}  Ra8 {[%clk 0:00:56]} 35. h4 {[%clk 0:01:18]}  gxh4 {[%clk 0:00:56]} 36. gxh4 {[%clk 0:01:19]}  Ra1 {[%clk 0:00:56]} 37. h5 {[%clk 0:01:19]}  Rf1 {[%clk 0:00:57]} 38. Ke2 {[%clk 0:01:19]}  Rc1 {[%clk 0:00:57]} 39. Ne3 {[%clk 0:01:19]}  Rh1 {[%clk 0:00:53]} 40. h6 {[%clk 0:01:19]}  Rh2+ {[%clk 0:00:45]} 41. Kd3 {[%clk 0:01:19]}  Kc8 {[%clk 0:00:45]} 42. b4 {[%clk 0:01:14]}  Rh3 {[%clk 0:00:37]} 43. Nf5 {[%clk 0:01:02]}  Rxf3+ {[%clk 0:00:32]} 44. Ke2 {[%clk 0:01:02]}  Rc3 {[%clk 0:00:23]} 45. Kd2 {[%clk 0:00:59]}  Rh3 {[%clk 0:00:23]} 46. Rf7 {[%clk 0:01:00]}  Nb6 {[%clk 0:00:20]} 47. h7 {[%clk 0:00:56]}  Nc4+ {[%clk 0:00:20]} 48. Ke2 {[%clk 0:00:57]}  Rh2+ {[%clk 0:00:20]} 49. Kd3 {[%clk 0:00:56]}  Nb2+ {[%clk 0:00:20]} 50. Kc3 {[%clk 0:00:56]}  Nd1+ {[%clk 0:00:20]} 51. Kc4 {[%clk 0:00:42]}  Rxc2+ {[%clk 0:00:18]} 52. Kb3 {[%clk 0:00:43]}  Rc3+ {[%clk 0:00:17]} 53. Ka2 {[%clk 0:00:43]}  Rc2+ {[%clk 0:00:16]} 54. Kb1 {[%clk 0:00:43]}  Rh2 {[%clk 0:00:16]} 55. Rf8+ {[%clk 0:00:38]}  Kc7 {[%clk 0:00:16]} 56. h8=Q {[%clk 0:00:39]}  Nc3+ {[%clk 0:00:17]} 57. Kc1 {[%clk 0:00:39]}  Na2+ {[%clk 0:00:15]} 58. Kd1 {[%clk 0:00:39]}  Nc3+ {[%clk 0:00:15]} 59. Ke1 {[%clk 0:00:39]}  Rxh8 {[%clk 0:00:15]} 60. Rxh8 {[%clk 0:00:40]}  Nxe4 {[%clk 0:00:16]} 61. Ke2 {[%clk 0:00:38]}  Kb6 {[%clk 0:00:16]} 62. Kd3 {[%clk 0:00:38]}  Nf2+ {[%clk 0:00:15]} 63. Kc4 {[%clk 0:00:38]}  Ng4 {[%clk 0:00:15]} 64. Rh7 {[%clk 0:00:36]}  e4 {[%clk 0:00:13]} 65. Re7 {[%clk 0:00:36]}  Ne5+ {[%clk 0:00:13]} 66. Kd4 {[%clk 0:00:33]}  Kb5 {[%clk 0:00:13]} 67. Rb7+ {[%clk 0:00:23]}  Ka6 {[%clk 0:00:11]} 68. Rb8 {[%clk 0:00:23]}  Ka7 {[%clk 0:00:11]} 69. Rh8 {[%clk 0:00:22]}  Ng6 {[%clk 0:00:10]} 70. Rh7+ {[%clk 0:00:20]}  Kb6 {[%clk 0:00:10]} 71. Nd6 {[%clk 0:00:20]}  Nf8 {[%clk 0:00:05]} 72. Re7 {[%clk 0:00:19]}  Ng6 {[%clk 0:00:04]} 73. Rb7+ {[%clk 0:00:20]}  Ka6 {[%clk 0:00:04]} 74. Kxe4 {[%clk 0:00:20]}  Ne5 {[%clk 0:00:04]} 75. Kd4 {[%clk 0:00:20]}  Nf3+ {[%clk 0:00:04]} 76. Kc5 {[%clk 0:00:20]}  Ne5 {[%clk 0:00:04]} 77. Re7 {[%clk 0:00:18]}  Nd3+ {[%clk 0:00:04]} 78. Kc4 {[%clk 0:00:17]}  Ne5+ {[%clk 0:00:04]} 79. Rxe5 {[%clk 0:00:17]}  fxe5 {[%clk 0:00:05]} 80. Kc5 {[%clk 0:00:18]}  e4 {[%clk 0:00:04]} 81. Nxe4 {[%clk 0:00:18]}  Kb7 {[%clk 0:00:03]} 82. Nd2 {[%clk 0:00:18]} 1-0


[Site "https://www.chess.com"]

[Event "Titled Tuesday Blitz August 15 Early 2023"]
[White "Principe, Alexander"]
[Black "Lysyj, Igor"]
[WhiteFideId "3804542"]
[BlackFideId "4150120"]
[WhiteElo "2574"]
[BlackElo "2858"]
[Result "0-1"]
[Round "4"]
[TimeControl "180+1"]
[Date "2023.08.15"]
[WhiteClock "0:00:48"]
[BlackClock "0:01:52"]
[Board "46"]

1. e4 {[%clk 0:02:59]}  e5 {[%clk 0:02:59]} 2. Nf3 {[%clk 0:02:58]}  Nc6 {[%clk 0:02:59]} 3. d4 {[%clk 0:02:59]}  exd4 {[%clk 0:02:58]} 4. Nxd4 {[%clk 0:02:59]}  Nf6 {[%clk 0:02:58]} 5. Nxc6 {[%clk 0:02:59]}  bxc6 {[%clk 0:02:58]} 6. e5 {[%clk 0:02:59]}  Qe7 {[%clk 0:02:57]} 7. Qe2 {[%clk 0:02:59]}  Nd5 {[%clk 0:02:57]} 8. c4 {[%clk 0:02:59]}  Ba6 {[%clk 0:02:55]} 9. b3 {[%clk 0:02:59]}  g6 {[%clk 0:02:55]} 10. f4 {[%clk 0:02:59]}  d6 {[%clk 0:02:54]} 11. Ba3 {[%clk 0:02:52]}  Nxf4 {[%clk 0:02:48]} 12. exd6 {[%clk 0:02:11]}  Qxe2+ {[%clk 0:02:21]} 13. Bxe2 {[%clk 0:02:08]}  Bg7 {[%clk 0:02:16]} 14. Bf3 {[%clk 0:02:07]}  O-O-O {[%clk 0:02:13]} 15. d7+ {[%clk 0:01:57]}  Rxd7 {[%clk 0:02:10]} 16. Bf8 {[%clk 0:01:58]}  Rxf8 {[%clk 0:02:06]} 17. Nc3 {[%clk 0:01:58]}  Bxc3+ {[%clk 0:02:05]} 18. Kf2 {[%clk 0:01:59]}  Bxa1 {[%clk 0:02:03]} 19. Kg3 {[%clk 0:02:00]}  Be5 {[%clk 0:02:01]} 20. Ra1 {[%clk 0:01:34]}  Nh5+ {[%clk 0:01:59]} 21. Kh4 {[%clk 0:00:48]}  Rd4+ {[%clk 0:01:52]} 0-1


[Site "https://www.chess.com"]

[Event "Titled Tuesday Blitz August 15 Early 2023"]
[White "Kukhmazov, Arsen"]
[Black "Souleidis, Georgios"]
[WhiteFideId "24108260"]
[BlackFideId "4206827"]
[WhiteElo "2841"]
[BlackElo "2564"]
[Result "1-0"]
[Round "4"]
[TimeControl "180+1"]
[Date "2023.08.15"]
[WhiteClock "0:00:06"]
[BlackClock "0:00:00"]
[Board "49"]

1. d4 {[%clk 0:03:00]}  Nf6 {[%clk 0:02:59]} 2. c4 {[%clk 0:03:00]}  g6 {[%clk 0:03:00]} 3. h4 {[%clk 0:03:00]}  c5 {[%clk 0:02:59]} 4. d5 {[%clk 0:02:59]}  Bg7 {[%clk 0:02:59]} 5. Nc3 {[%clk 0:02:58]}  O-O {[%clk 0:02:59]} 6. e4 {[%clk 0:02:54]}  d6 {[%clk 0:02:59]} 7. Be2 {[%clk 0:02:55]}  e6 {[%clk 0:02:59]} 8. h5 {[%clk 0:02:55]}  exd5 {[%clk 0:03:00]} 9. exd5 {[%clk 0:02:56]}  Re8 {[%clk 0:03:00]} 10. h6 {[%clk 0:02:53]}  Bh8 {[%clk 0:02:58]} 11. Nf3 {[%clk 0:02:47]}  Bg4 {[%clk 0:02:56]} 12. O-O {[%clk 0:02:48]}  Nbd7 {[%clk 0:02:50]} 13. Bg5 {[%clk 0:02:45]}  Qb6 {[%clk 0:02:45]} 14. Qd2 {[%clk 0:02:33]}  Ne4 {[%clk 0:02:24]} 15. Nxe4 {[%clk 0:02:33]}  Rxe4 {[%clk 0:02:25]} 16. Rab1 {[%clk 0:02:32]}  Bxf3 {[%clk 0:02:08]} 17. gxf3 {[%clk 0:02:32]}  Ree8 {[%clk 0:02:03]} 18. f4 {[%clk 0:02:29]}  Qb4 {[%clk 0:01:34]} 19. Qc2 {[%clk 0:02:15]}  f5 {[%clk 0:01:29]} 20. Bd3 {[%clk 0:02:12]}  Nf6 {[%clk 0:01:15]} 21. a3 {[%clk 0:02:10]}  Qb6 {[%clk 0:01:09]} 22. Bxf5 {[%clk 0:01:41]}  gxf5 {[%clk 0:01:06]} 23. Qxf5 {[%clk 0:01:41]}  Rf8 {[%clk 0:00:42]} 24. Kh1 {[%clk 0:01:19]}  Qc7 {[%clk 0:00:39]} 25. Rg1 {[%clk 0:01:18]}  Rf7 {[%clk 0:00:08]} 26. Bxf6+ {[%clk 0:00:37]}  Kf8 {[%clk 0:00:08]} 27. Qg5 {[%clk 0:00:31]}  Bxf6 {[%clk 0:00:04]} 28. Qg8+ {[%clk 0:00:31]}  Ke7 {[%clk 0:00:04]} 29. Rbe1+ {[%clk 0:00:31]}  Be5 {[%clk 0:00:04]} 30. Qxa8 {[%clk 0:00:15]}  Qd7 {[%clk 0:00:04]} 31. Re3 {[%clk 0:00:08]}  Rxf4 {[%clk 0:00:02]} 32. Rg7+ {[%clk 0:00:08]}  Rf7 {[%clk 0:00:03]} 33. Qg8 {[%clk 0:00:07]}  Qf5 {[%clk 0:00:02]} 34. Qxf7+ {[%clk 0:00:07]}  Qxf7 {[%clk 0:00:03]} 35. Rxf7+ {[%clk 0:00:07]}  Kxf7 {[%clk 0:00:04]} 36. b3 {[%clk 0:00:07]}  Kg6 {[%clk 0:00:04]} 37. Rf3 {[%clk 0:00:07]}  a6 {[%clk 0:00:03]} 38. Kg2 {[%clk 0:00:07]}  b5 {[%clk 0:00:03]} 39. cxb5 {[%clk 0:00:06]}  axb5 {[%clk 0:00:04]} 40. a4 {[%clk 0:00:05]}  bxa4 {[%clk 0:00:05]} 41. bxa4 {[%clk 0:00:06]}  c4 {[%clk 0:00:05]} 42. Ra3 {[%clk 0:00:03]}  c3 {[%clk 0:00:06]} 43. Ra2 {[%clk 0:00:03]}  Kxh6 {[%clk 0:00:05]} 44. a5 {[%clk 0:00:04]}  Bd4 {[%clk 0:00:04]} 45. a6 {[%clk 0:00:05]}  Kg5 {[%clk 0:00:03]} 46. a7 {[%clk 0:00:04]}  c2 {[%clk 0:00:04]} 47. Rxc2 {[%clk 0:00:04]}  Bxa7 {[%clk 0:00:04]} 48. Kf3 {[%clk 0:00:04]}  Kf5 {[%clk 0:00:04]} 49. Re2 {[%clk 0:00:04]}  Bc5 {[%clk 0:00:03]} 50. Re6 {[%clk 0:00:04]}  h5 {[%clk 0:00:03]} 51. Kg2 {[%clk 0:00:04]}  Bd4 {[%clk 0:00:03]} 52. f3 {[%clk 0:00:04]}  Bc5 {[%clk 0:00:03]} 53. Kh3 {[%clk 0:00:04]}  Bb4 {[%clk 0:00:04]} 54. Kh4 {[%clk 0:00:04]}  Kf4 {[%clk 0:00:05]} 55. Rf6+ {[%clk 0:00:05]}  Ke5 {[%clk 0:00:05]} 56. Rf8 {[%clk 0:00:05]}  Kxd5 {[%clk 0:00:05]} 57. Kxh5 {[%clk 0:00:06]}  Ke6 {[%clk 0:00:06]} 58. Kg6 {[%clk 0:00:07]}  d5 {[%clk 0:00:06]} 59. Re8+ {[%clk 0:00:07]}  Kd7 {[%clk 0:00:06]} 60. Re2 {[%clk 0:00:07]}  d4 {[%clk 0:00:06]} 61. Re4 {[%clk 0:00:07]}  Bc3 {[%clk 0:00:06]} 62. f4 {[%clk 0:00:08]}  Kd6 {[%clk 0:00:07]} 63. f5 {[%clk 0:00:08]}  d3 {[%clk 0:00:07]} 64. Re3 {[%clk 0:00:08]}  d2 {[%clk 0:00:06]} 65. Rd3+ {[%clk 0:00:08]}  Ke5 {[%clk 0:00:06]} 66. f6 {[%clk 0:00:08]}  Ke4 {[%clk 0:00:06]} 67. Rd7 {[%clk 0:00:04]}  Bxf6 {[%clk 0:00:06]} 68. Rxd2 {[%clk 0:00:03]}  Bd4 {[%clk 0:00:06]} 69. Re2+ {[%clk 0:00:04]}  Kd3 {[%clk 0:00:06]} 70. Re8 {[%clk 0:00:04]}  Kc4 {[%clk 0:00:07]} 71. Kf5 {[%clk 0:00:05]}  Kb5 {[%clk 0:00:06]} 72. Ke4 {[%clk 0:00:06]}  Bc5 {[%clk 0:00:06]} 73. Kd5 {[%clk 0:00:07]}  Bf2 {[%clk 0:00:06]} 74. Rb8+ {[%clk 0:00:07]}  Ka6 {[%clk 0:00:06]} 75. Rb1 {[%clk 0:00:07]}  Ka7 {[%clk 0:00:05]} 76. Kc6 {[%clk 0:00:07]}  Ka8 {[%clk 0:00:05]} 77. Rb7 {[%clk 0:00:07]}  Ba7 {[%clk 0:00:05]} 78. Rf7 {[%clk 0:00:07]}  Bd4 {[%clk 0:00:05]} 79. Rf8+ {[%clk 0:00:07]}  Ka7 {[%clk 0:00:05]} 80. Rd8 {[%clk 0:00:06]}  Be3 {[%clk 0:00:04]} 81. Rd3 {[%clk 0:00:06]}  Bf2 {[%clk 0:00:04]} 82. Rb3 {[%clk 0:00:06]}  Bg1 {[%clk 0:00:02]} 83. Ra3+ {[%clk 0:00:05]}  Kb8 {[%clk 0:00:03]} 84. Ra1 {[%clk 0:00:06]}  Bd4 {[%clk 0:00:02]} 85. Rh1 {[%clk 0:00:07]}  Ka8 {[%clk 0:00:02]} 86. Rh4 {[%clk 0:00:06]}  Be3 {[%clk 0:00:02]} 87. Re4 {[%clk 0:00:06]}  Bf2 {[%clk 0:00:00]} 88. Kc7 {[%clk 0:00:06]} 1-0


[Site "https://www.chess.com"]

[Event "Titled Tuesday Blitz August 15 Early 2023"]
[White "Yelisieiev, Yevhenii"]
[Black "Guliyev, Namig"]
[WhiteFideId "14139642"]
[BlackFideId "13400363"]
[WhiteElo "2555"]
[BlackElo "2823"]
[Result "1/2-1/2"]
[Round "4"]
[TimeControl "180+1"]
[Date "2023.08.15"]
[WhiteClock "0:00:31"]
[BlackClock "0:01:18"]
[Board "51"]

1. d4 {[%clk 0:02:59]}  d5 {[%clk 0:02:59]} 2. Nf3 {[%clk 0:02:58]}  Nf6 {[%clk 0:02:59]} 3. c4 {[%clk 0:02:58]}  dxc4 {[%clk 0:02:59]} 4. e3 {[%clk 0:02:57]}  e6 {[%clk 0:02:57]} 5. Bxc4 {[%clk 0:02:57]}  a6 {[%clk 0:02:57]} 6. O-O {[%clk 0:02:54]}  Nbd7 {[%clk 0:02:58]} 7. Nbd2 {[%clk 0:02:34]}  Bd6 {[%clk 0:02:56]} 8. e4 {[%clk 0:02:30]}  e5 {[%clk 0:02:55]} 9. dxe5 {[%clk 0:02:17]}  Nxe5 {[%clk 0:02:55]} 10. Nxe5 {[%clk 0:02:17]}  Bxe5 {[%clk 0:02:56]} 11. Nf3 {[%clk 0:02:18]}  Qxd1 {[%clk 0:02:46]} 12. Rxd1 {[%clk 0:02:17]}  Bg4 {[%clk 0:02:46]} 13. Bxf7+ {[%clk 0:02:06]}  Ke7 {[%clk 0:02:43]} 14. Bb3 {[%clk 0:02:06]}  Bxf3 {[%clk 0:02:42]} 15. gxf3 {[%clk 0:02:06]}  Rhd8 {[%clk 0:02:39]} 16. Be3 {[%clk 0:02:04]}  Bxb2 {[%clk 0:02:30]} 17. Rxd8 {[%clk 0:01:58]}  Rxd8 {[%clk 0:02:28]} 18. Rd1 {[%clk 0:01:58]}  Rxd1+ {[%clk 0:02:27]} 19. Bxd1 {[%clk 0:01:58]}  b6 {[%clk 0:02:25]} 20. Bf4 {[%clk 0:01:52]}  c5 {[%clk 0:02:21]} 21. a4 {[%clk 0:01:39]}  b5 {[%clk 0:02:20]} 22. Kf1 {[%clk 0:01:37]}  Nd7 {[%clk 0:02:15]} 23. Ke2 {[%clk 0:01:30]}  Nb6 {[%clk 0:02:15]} 24. axb5 {[%clk 0:01:30]}  axb5 {[%clk 0:02:16]} 25. Be3 {[%clk 0:01:28]}  Kd6 {[%clk 0:02:14]} 26. f4 {[%clk 0:01:29]}  Bd4 {[%clk 0:02:11]} 27. Bxd4 {[%clk 0:01:19]}  cxd4 {[%clk 0:02:11]} 28. Kd3 {[%clk 0:01:13]}  Kc5 {[%clk 0:02:10]} 29. Bb3 {[%clk 0:01:13]}  h6 {[%clk 0:02:06]} 30. e5 {[%clk 0:01:13]}  Nd5 {[%clk 0:02:04]} 31. f5 {[%clk 0:01:09]}  Ne7 {[%clk 0:01:33]} 32. f6 {[%clk 0:01:05]}  gxf6 {[%clk 0:01:33]} 33. exf6 {[%clk 0:01:05]}  Nc6 {[%clk 0:01:30]} 34. Ke4 {[%clk 0:00:52]}  Kd6 {[%clk 0:01:29]} 35. Bd5 {[%clk 0:00:43]}  d3 {[%clk 0:01:24]} 36. f7 {[%clk 0:00:38]}  Ke7 {[%clk 0:01:21]} 37. Kxd3 {[%clk 0:00:37]}  Nb4+ {[%clk 0:01:13]} 38. Kd4 {[%clk 0:00:35]}  Nxd5 {[%clk 0:01:14]} 39. Kxd5 {[%clk 0:00:35]}  Kxf7 {[%clk 0:01:15]} 40. Kc5 {[%clk 0:00:36]}  Kf6 {[%clk 0:01:16]} 41. Kxb5 {[%clk 0:00:36]}  Kf5 {[%clk 0:01:16]} 42. h4 {[%clk 0:00:32]}  Kg4 {[%clk 0:01:15]} 43. Kc4 {[%clk 0:00:29]}  Kxh4 {[%clk 0:01:15]} 44. Kd3 {[%clk 0:00:29]}  Kg4 {[%clk 0:01:15]} 45. Ke2 {[%clk 0:00:29]}  Kf4 {[%clk 0:01:16]} 46. Kf1 {[%clk 0:00:29]}  Kf3 {[%clk 0:01:16]} 47. Kg1 {[%clk 0:00:29]}  h5 {[%clk 0:01:16]} 48. Kh2 {[%clk 0:00:29]}  h4 {[%clk 0:01:17]} 49. Kh3 {[%clk 0:00:30]}  Kxf2 {[%clk 0:01:18]} 50. Kxh4 {[%clk 0:00:31]} 1/2-1/2


[Site "https://www.chess.com"]